bitfinex/quotes_SOLUSD_20241202
["timestamp","ask_amount","ask_price","bid_price","bid_amount"]
[1733150803799,6.89936952,227.62,227.53,8.16124714]
[1733150803979,6.89936952,227.61,227.53,9.03779904]
[1733150804186,6.89936952,227.61,227.54,8.16124714]
[1733150804378,6.89936952,227.61,227.53,0.8765519]
[1733150804590,6.89936952,227.61,227.53,9.03779904]
[1733150804785,6.89936952,227.61,227.54,8.16124714]
[1733150804983,6.89936952,227.61,227.55,0.87654094]
[1733150805179,6.89936952,227.61,227.56,8.16124714]
[1733150805381,6.89936952,227.61,227.51,20.0]
[1733150805382,6.89936952,227.64,227.58,8.16124714]
[1733150805581,6.89936952,227.64,227.57,0.87653748]
[1733150805582,6.89936952,227.64,227.6,8.16124714]
[1733150805785,6.89936952,227.65,227.6,8.16124714]
[1733150806198,6.89936952,227.66,227.6,8.16124714]
[1733150806382,6.89936952,227.67,227.6,8.16124714]
[1733150806782,6.89936952,227.67,227.61,8.16124714]
[1733150806982,6.89936952,227.67,227.6,8.16124714]
[1733150807283,0.12549,227.67,227.6,8.16124714]
[1733150807492,7.02485952,227.67,227.6,8.16124714]
[1733150808805,7.02485952,227.67,227.59,8.16124714]
[1733150809003,7.02485952,227.67,227.57,8.16124714]
[1733150809190,7.02485952,227.67,227.6,8.16124714]
[1733150809507,7.02485952,227.67,227.59,8.16124714]
[1733150809682,6.89936952,227.66,227.59,8.16124714]
[1733150810287,6.89936952,227.66,227.58,8.16124714]
[1733150810512,6.89936952,227.66,227.56,0.87641405]
[1733150810693,6.89936952,227.65,227.54,8.16124714]
[1733150810879,6.89936952,227.63,227.55,8.16124714]
[1733150811213,6.89936952,227.63,227.56,8.16124714]
[1733150811411,6.89936952,227.64,227.56,8.16124714]
[1733150811590,6.89936952,227.64,227.57,8.16124714]
[1733150811789,6.89936952,227.65,227.63,8.16124714]
[1733150811991,7.42960522,227.69,227.63,8.16124714]
[1733150812192,0.5302357,227.69,227.65,8.16124714]
[1733150812693,0.5302357,227.69,227.64,9.03743659]
[1733150813409,0.5302357,227.69,227.64,0.87618945]
[1733150814089,0.5302357,227.69,227.61,22.68716673]
[1733150814289,0.5302357,227.69,227.63,8.16124714]
[1733150814503,0.5302357,227.69,227.64,8.16124714]
[1733150815009,0.5302357,227.69,227.65,8.16124714]
[1733150815205,0.5302357,227.69,227.68,8.16124714]
[1733150815386,0.5302357,227.69,227.68,9.03719169]
[1733150816389,0.5302357,227.69,227.68,8.16124714]
[1733150817812,0.5302357,227.69,227.66,20.0]
[1733150818016,15.583,227.79,227.68,8.16124714]
[1733150818017,22.48236952,227.79,227.68,8.16124714]
[1733150818190,0.12549,227.78,227.69,8.16124714]
[1733150818393,0.12549,227.78,227.7,8.16124714]
[1733150818800,0.12549,227.78,227.69,8.16124714]
[1733150819007,0.12549,227.78,227.7,8.16124714]
[1733150819315,0.12549,227.78,227.67,0.87594592]
[1733150819316,0.12549,227.78,227.68,8.16124714]
[1733150819995,0.12549,227.78,227.67,9.03719306]
[1733150820318,0.12549,227.78,227.64,20.87602064]
[1733150820497,0.12549,227.78,227.65,8.16124714]
[1733150820909,0.12549,227.78,227.64,8.16124714]
[1733150821096,15.5158,227.77,227.62,8.16124714]
[1733150821409,30.67625352,227.76,227.59,8.16124714]
[1733150821587,30.67625352,227.74,227.62,8.16124714]
[1733150821789,30.67625352,227.74,227.61,8.16124714]
[1733150822010,6.89936952,227.74,227.6,8.16124714]
[1733150822347,15.5158,227.77,227.56,23.32334631]
[1733150822348,6.89936952,227.73,227.62,8.16124714]
[1733150822512,6.89936952,227.75,227.65,8.16124714]
[1733150822719,6.89936952,227.76,227.66,8.16124714]
[1733150822909,6.89936952,227.76,227.65,8.16124714]
[1733150823422,30.67625352,227.76,227.62,28.16124714]
[1733150823617,6.89936952,227.76,227.64,12.74339479]
[1733150823912,6.89936952,227.76,227.65,12.74339479]
[1733150824117,22.41516952,227.77,227.64,12.74339479]
[1733150824290,6.89936952,227.76,227.63,12.74339479]
[1733150824714,6.89936952,227.76,227.65,12.74339479]
[1733150824923,15.5158,227.77,227.65,12.74339479]
[1733150825094,6.89936952,227.76,227.65,12.74339479]
[1733150825494,6.89936952,227.76,227.64,12.74339479]
[1733150825789,6.89936952,227.76,227.6,0.87616018]
[1733150825790,23.776884,227.75,227.62,12.74339479]
[1733150826405,23.776884,227.75,227.6,12.74339479]
[1733150826607,30.67625352,227.75,227.59,12.74339479]
[1733150826810,23.776884,227.71,227.58,12.74339479]
[1733150827025,23.776884,227.69,227.57,12.74339479]
[1733150827340,23.776884,227.69,227.55,12.74339479]
[1733150827721,23.776884,227.69,227.56,12.74339479]
[1733150828022,30.67625352,227.69,227.56,12.74339479]
[1733150828213,6.89936952,227.68,227.56,12.74339479]
[1733150828402,6.89936952,227.69,227.59,12.74339479]
[1733150828598,6.89936952,227.69,227.54,24.167]
[1733150828599,6.89936952,227.73,227.63,12.74339479]
[1733150828917,0.12549,227.72,227.63,12.74339479]
[1733150829217,0.12549,227.72,227.62,12.74339479]
[1733150829424,6.89936952,227.73,227.63,12.74339479]
[1733150829920,6.89936952,227.73,227.64,12.74339479]
[1733150830227,6.89936952,227.75,227.69,0.1229]
[1733150830446,20.0,227.72,227.69,0.1229]
[1733150830722,19.5483,227.7,227.56,12.74339479]
[1733150830942,6.89936952,227.71,227.64,12.74339479]
[1733150831099,6.89936952,227.73,227.64,12.74339479]
[1733150831424,0.12549,227.75,227.66,12.74339479]
[1733150831607,6.89936952,227.76,227.66,12.74339479]
[1733150831808,6.89936952,227.77,227.66,12.74339479]
[1733150832123,6.89936952,227.77,227.64,12.74339479]
[1733150832516,0.12549,227.76,227.64,12.74339479]
[1733150832714,7.02485952,227.76,227.64,12.74339479]
[1733150832914,7.02485952,227.76,227.62,0.87612438]
[1733150833105,7.02485952,227.76,227.62,13.61951917]
[1733150833301,0.12549,227.76,227.64,12.74339479]
[1733150833624,23.902374,227.76,227.64,12.74339479]
[1733150833821,23.902374,227.76,227.62,13.61951917]
[1733150834225,20.0,227.73,227.6,12.74339479]
[1733150834534,43.776884,227.72,227.6,12.74339479]
[1733150834714,23.776884,227.72,227.6,12.74339479]
[1733150834922,22.47556952,227.71,227.58,12.74339479]
[1733150835125,20.0,227.68,227.56,19.27569479]
[1733150835316,6.89936952,227.69,227.56,12.74339479]
[1733150835509,6.89936952,227.69,227.51,15.5728]
[1733150835510,6.89936952,227.69,227.59,12.74339479]
[1733150835833,0.12549,227.68,227.57,12.74339479]
[1733150836704,0.12549,227.68,227.55,12.74339479]
[1733150837310,0.12549,227.68,227.57,12.74339479]
[1733150837515,22.47556952,227.71,227.59,12.74339479]
[1733150837724,30.80174352,227.7,227.55,12.74339479]
[1733150837922,23.776884,227.68,227.54,12.74339479]
[1733150838439,23.776884,227.66,227.52,13.61996716]
[1733150838792,23.776884,227.66,227.52,0.87657237]
[1733150838921,23.776884,227.66,227.52,13.61996716]
[1733150839112,20.0,227.63,227.49,12.74339479]
[1733150839423,20.0,227.63,227.49,0.87671327]
[1733150839424,16.2961,227.62,227.49,0.87671327]
[1733150839609,20.0,227.59,227.47,0.87675614]
[1733150839809,20.0,227.59,227.43,12.74339479]
[1733150840121,23.776884,227.58,227.44,0.87689888]
[1733150840329,20.0,227.55,227.44,0.87689888]
[1733150840515,20.0,227.57,227.44,0.87689888]
[1733150840713,20.0,227.57,227.41,0.87694997]
[1733150840929,20.0,227.56,227.41,0.87694997]
[1733150841128,15.3555,227.55,227.41,0.87694997]
[1733150841326,20.0,227.52,227.39,12.74339479]
[1733150841626,20.0,227.52,227.4,0.8770064]
[1733150841627,20.0,227.51,227.4,0.8770064]
[1733150842428,6.89936952,227.54,227.4,13.62040119]
[1733150842629,22.25486952,227.55,227.46,12.74339479]
[1733150842939,15.3555,227.55,227.47,0.8768333]
[1733150843240,15.3555,227.55,227.43,12.74339479]
[1733150843534,15.3555,227.55,227.44,13.62025937]
[1733150843736,15.3555,227.55,227.44,0.87686458]
[1733150843911,20.0,227.56,227.47,12.74339479]
[1733150844111,20.0,227.56,227.48,0.87676253]
[1733150844525,20.0,227.57,227.48,0.87676253]
[1733150844748,22.46706952,227.61,227.48,0.87676253]
[1733150845042,20.0,227.58,227.46,0.87677921]
[1733150846037,22.46706952,227.61,227.47,0.87682459]
[1733150846235,15.5677,227.61,227.47,0.87682459]
[1733150846741,15.5677,227.61,227.47,13.62021938]
[1733150847432,15.5677,227.61,227.47,0.87682459]
[1733150848525,15.5677,227.61,227.48,0.87674798]
[1733150849424,15.5677,227.61,227.49,0.8767502]
[1733150849736,6.96449849,227.64,227.51,12.74339479]
[1733150849940,0.06512897,227.64,227.52,0.87651263]
[1733150850246,0.06512897,227.64,227.47,23.776884]
[1733150850247,0.06512897,227.64,227.5,0.87660011]
[1733150850940,6.96449849,227.64,227.48,0.87672712]
[1733150851110,20.0,227.61,227.48,0.87672712]
[1733150851523,0.06512897,227.64,227.48,13.62012191]
[1733150851727,20.0,227.62,227.49,12.74339479]
[1733150851926,20.0,227.63,227.5,0.87658529]
[1733150852525,20.0,227.62,227.5,0.87658529]
[1733150852921,20.06512897,227.64,227.5,0.87658529]
[1733150853432,20.0,227.63,227.5,0.87658529]
[1733150853634,0.06512897,227.64,227.53,23.776884]
[1733150853948,0.06512897,227.64,227.54,0.12549]
[1733150854117,0.06512897,227.64,227.56,23.776884]
[1733150854445,0.06512897,227.64,227.52,22.431]
[1733150854446,0.06512897,227.64,227.53,0.87640047]
[1733150854742,0.06512897,227.64,227.54,23.776884]
[1733150854934,0.06512897,227.64,227.53,23.776884]
[1733150856837,20.06512897,227.64,227.53,23.776884]
[1733150858242,20.06512897,227.64,227.52,22.431]
[1733150858546,20.0,227.62,227.5,0.87662215]
[1733150858843,20.0,227.6,227.47,16.81493608]
[1733150859214,0.06512897,227.64,227.5,12.74339479]
[1733150859441,0.06512897,227.64,227.51,0.8765947]
[1733150860817,20.06512897,227.64,227.51,0.8765947]
[1733150861845,0.06512897,227.64,227.51,0.8765947]
[1733150862829,0.06512897,227.64,227.53,12.74339479]
[1733150863027,0.06512897,227.64,227.54,0.87646337]
[1733150863546,0.06512897,227.64,227.56,6.1294]
[1733150864530,0.06512897,227.64,227.57,39.827084]
[1733150866951,0.06512897,227.64,227.58,13.61976574]
[1733150867246,0.06512897,227.64,227.61,23.776884]
[1733150867631,0.06512897,227.64,227.57,28.79359479]
[1733150867847,0.06512897,227.64,227.58,23.776884]
[1733150868621,0.06512897,227.64,227.57,16.0502]
[1733150868833,20.0,227.7,227.57,15.98507103]
[1733150869436,20.0,227.69,227.57,15.98507103]
[1733150869957,20.0,227.68,227.57,15.98507103]
[1733150870847,20.0,227.68,227.57,28.72846582]
[1733150871037,20.0,227.69,227.57,28.72846582]
[1733150871454,20.0,227.68,227.57,15.98507103]
[1733150872255,20.0,227.67,227.57,15.98507103]
[1733150873030,20.0,227.66,227.57,15.98507103]
[1733150873337,20.0,227.66,227.56,6.1294]
[1733150873647,20.0,227.65,227.56,6.1294]
[1733150873854,20.0,227.65,227.52,0.87663647]
[1733150874035,20.0,227.65,227.52,13.62003126]
[1733150874234,20.0,227.65,227.54,12.74339479]
[1733150875334,6.89936952,227.65,227.54,12.74339479]
[1733150875543,6.89936952,227.67,227.52,13.62003126]
[1733150875852,6.89936952,227.67,227.57,12.74339479]
[1733150876230,6.89936952,227.68,227.55,23.776884]
[1733150877241,0.12549,227.67,227.54,13.61980206]
[1733150877447,7.02485952,227.67,227.54,12.74339479]
[1733150877831,7.02485952,227.67,227.52,13.61987963]
[1733150878238,6.89936952,227.66,227.52,13.61987963]
[1733150878936,6.89936952,227.65,227.52,13.61987963]
[1733150880855,20.0,227.63,227.51,21.2831]
[1733150881057,20.0,227.61,227.51,21.2831]
[1733150881265,20.0,227.6,227.51,6.0355]
[1733150881439,20.0,227.59,227.51,6.0355]
[1733150882238,20.0,227.59,227.47,9.04438305]
[1733150882548,20.0,227.57,227.46,21.6617]
[1733150883433,20.0,227.56,227.46,21.6617]
[1733150884059,20.0,227.56,227.46,34.42562456]
[1733150884842,20.0,227.55,227.46,21.6617]
[1733150885043,20.0,227.55,227.41,16.6273]
[1733150885364,50.67625352,227.54,227.41,16.6273]
[1733150885656,20.0,227.53,227.41,16.6273]
[1733150885970,20.0,227.51,227.41,16.6273]
[1733150886467,26.89936952,227.51,227.41,16.6273]
[1733150886653,20.0,227.51,227.41,16.6273]
[1733150886857,6.89936952,227.52,227.41,16.6273]
[1733150889252,22.02056952,227.53,227.41,16.6273]
[1733150889762,135.2,227.59,227.32,7.76015666]
[1733150889763,27.5974781,227.65,227.55,0.12549]
[1733150889940,27.5974781,227.68,227.63,12.76392456]
[1733150890144,124.18865146,227.71,227.56,6.5855]
[1733150890367,27.5974781,227.75,227.57,13.64017011]
[1733150890545,0.12549,227.73,227.57,13.64017011]
[1733150890869,0.12549,227.73,227.56,6.5855]
[1733150891047,5.10607122,227.73,227.54,32.76392456]
[1733150891249,5.10607122,227.73,227.55,0.87637698]
[1733150891454,23.902374,227.73,227.55,0.87637698]
[1733150891651,0.12549,227.73,227.55,0.87637698]
[1733150891856,0.12549,227.73,227.51,6.2998]
[1733150891857,23.776884,227.71,227.51,6.2998]
[1733150892139,23.776884,227.71,227.51,7.17635239]
[1733150892539,5.0,227.75,227.51,7.17635239]
[1733150892540,22.6657,227.89,227.68,12.76392456]
[1733150892767,16.2745,227.89,227.75,12.76392456]
[1733150892975,1.0,227.95,227.77,12.76392456]
[1733150893152,1.0,227.95,227.78,0.87558165]
[1733150893642,6.0,227.95,227.78,0.87558165]
[1733150893838,1.0,227.95,227.77,20.3638305]
[1733150894060,6.0,227.95,227.75,20.3638305]
[1733150894259,20.5302357,227.92,227.76,0.87565053]
[1733150894746,0.5302357,227.92,227.83,20.3638305]
[1733150894970,0.5302357,227.92,227.84,0.87537035]
[1733150895140,0.5302357,227.92,227.81,20.3638305]
[1733150895346,0.5302357,227.92,227.79,20.3638305]
[1733150895558,0.12549,227.91,227.79,20.3638305]
[1733150896072,0.12549,227.91,227.77,6.4535]
[1733150896073,0.12549,227.91,227.77,26.8173305]
[1733150896247,23.902374,227.91,227.77,26.8173305]
[1733150896443,0.12549,227.91,227.82,20.3638305]
[1733150896774,0.12549,227.91,227.78,0.87565529]
[1733150896775,0.12549,227.91,227.79,20.3638305]
[1733150897270,0.5302357,227.92,227.8,0.12549]
[1733150897575,0.5302357,227.92,227.81,20.3638305]
[1733150897879,0.5302357,227.92,227.83,20.3638305]
[1733150898061,0.5302357,227.92,227.85,20.3638305]
[1733150898252,0.5302357,227.92,227.87,20.3638305]
[1733150899072,0.5302357,227.92,227.84,20.3638305]
[1733150899573,0.5302357,227.92,227.83,20.3638305]
[1733150900752,1.0,227.95,227.94,20.12549]
[1733150901062,1.0,227.95,227.94,64.2662045]
[1733150901250,140.2,228.2,227.95,0.12549]
[1733150901251,0.12549,228.13,227.95,0.12549]
[1733150901648,5.0,228.15,227.94,20.3638305]
[1733150902075,0.12549,228.13,227.94,20.3638305]
[1733150902274,159.102374,228.13,227.94,20.3638305]
[1733150902484,159.102374,228.13,227.9,0.8748575]
[1733150902485,159.102374,228.13,227.95,20.3638305]
[1733150902782,23.776884,228.09,227.94,20.3638305]
[1733150903476,23.776884,228.09,227.91,40.3638305]
[1733150903972,23.776884,228.09,227.91,20.0]
[1733150904280,23.776884,228.09,227.9,20.3638305]
[1733150904281,23.776884,228.09,227.94,20.3638305]
[1733150904778,23.776884,228.09,227.92,20.3638305]
[1733150905004,23.776884,228.09,227.91,20.3638305]
[1733150905374,23.776884,228.1,227.95,20.3638305]
[1733150905578,23.776884,228.11,227.95,20.3638305]
[1733150905878,0.5302357,228.14,227.95,20.3638305]
[1733150906071,0.5302357,228.14,227.91,20.12549]
[1733150906072,0.12549,228.13,227.96,20.3638305]
[1733150906299,0.5302357,228.14,227.95,20.3638305]
[1733150907081,23.902374,228.12,227.95,20.3638305]
[1733150907781,23.902374,228.12,227.94,40.3638305]
[1733150908202,23.902374,228.12,227.95,20.3638305]
[1733150909292,23.902374,228.12,227.93,20.0]
[1733150909497,23.902374,228.12,227.94,20.3638305]
[1733150909681,20.0,228.09,227.93,20.3638305]
[1733150909881,23.776884,228.02,227.84,20.3638305]
[1733150910200,23.776884,227.98,227.82,35.7135305]
[1733150910500,23.776884,227.98,227.83,20.3638305]
[1733150910800,23.776884,227.98,227.82,20.3638305]
[1733150911011,23.776884,227.98,227.83,20.3638305]
[1733150911505,20.0,227.95,227.82,20.3638305]
[1733150911678,23.776884,227.98,227.82,20.3638305]
[1733150911884,23.776884,228.0,227.82,20.3638305]
[1733150912079,23.776884,228.0,227.75,32.829213]
[1733150912080,23.776884,227.98,227.79,20.3638305]
[1733150912287,23.776884,227.98,227.8,20.3638305]
[1733150912499,158.976884,227.98,227.82,20.3638305]
[1733150913209,23.776884,227.98,227.84,20.3638305]
[1733150913604,23.776884,228.0,227.84,20.3638305]
[1733150913797,23.776884,227.96,227.85,20.3638305]
[1733150914215,23.776884,227.96,227.82,20.3638305]
[1733150914514,23.776884,227.96,227.81,20.3638305]
[1733150914808,23.776884,227.96,227.82,20.3638305]
[1733150915395,23.776884,227.96,227.84,20.3638305]
[1733150915595,23.776884,227.96,227.86,20.3638305]
[1733150915917,135.2,228.04,227.86,20.3638305]
[1733150916148,0.12549,228.0,227.85,20.3638305]
[1733150916290,20.12549,228.0,227.83,20.3638305]
[1733150916492,20.0,227.99,227.83,20.3638305]
[1733150916686,20.0,227.99,227.84,20.3638305]
[1733150917210,20.0,227.95,227.79,0.87544611]
[1733150917412,23.776884,227.94,227.8,20.3638305]
[1733150917588,0.12549,228.0,227.78,20.0]
[1733150917589,135.2,228.06,227.85,20.3638305]
[1733150917789,20.0,228.03,227.87,20.3638305]
[1733150917993,0.12549,228.02,227.83,0.87528393]
[1733150918198,20.12549,228.02,227.85,20.3638305]
[1733150918788,23.776884,228.02,227.86,20.3638305]
[1733150918990,23.776884,227.98,227.86,20.3638305]
[1733150919187,23.776884,227.98,227.83,0.87528393]
[1733150919392,23.776884,227.98,227.86,20.3638305]
[1733150919588,135.2,228.06,227.9,20.3638305]
[1733150919815,135.2,228.06,227.88,20.3638305]
[1733150920912,23.776884,228.01,227.88,20.3638305]
[1733150922003,0.12549,228.0,227.88,20.3638305]
[1733150923138,0.12549,228.0,227.91,20.3638305]
[1733150923312,20.0,228.04,227.92,21.23891201]
[1733150923516,6.0257,228.07,227.92,21.23891201]
[1733150923731,0.12549,228.06,227.92,21.23891201]
[1733150924740,20.0,228.03,227.89,20.3638305]
[1733150924938,6.0257,228.07,227.94,20.3638305]
[1733150925228,20.0,228.04,227.89,20.3638305]
[1733150925433,0.12549,228.03,227.89,20.3638305]
[1733150926425,43.902374,228.03,227.83,20.3638305]
[1733150926627,155.2,228.0,227.81,20.3638305]
[1733150926928,23.776884,227.96,227.85,20.3638305]
[1733150927528,15.1073,227.97,227.85,20.3638305]
[1733150927722,20.0,227.96,227.87,20.3638305]
[1733150928349,20.0,227.96,227.85,20.3638305]
[1733150930253,23.776884,227.99,227.86,0.87536193]
[1733150930452,15.0377,228.04,227.91,20.3638305]
[1733150930832,0.12549,228.03,227.91,20.3638305]
[1733150931843,15.0377,228.04,227.91,20.3638305]
[1733150932347,0.12549,228.03,227.89,20.3638305]
[1733150932936,23.902374,228.03,227.87,26.5814305]
[1733150933938,23.776884,227.99,227.85,20.3638305]
[1733150935965,20.0,228.0,227.86,0.87533082]
[1733150936136,20.0,228.0,227.87,20.3638305]
[1733150936464,138.06578839,228.03,227.87,20.3638305]
[1733150936963,20.0,228.0,227.87,20.3638305]
[1733150937155,20.0,228.0,227.88,0.87524788]
[1733150937350,135.32549,228.03,227.88,0.87524788]
[1733150937562,23.776884,228.02,227.88,0.87524788]
[1733150938354,23.902374,228.03,227.88,0.87524788]
[1733150938564,15.0377,228.04,227.89,20.3638305]
[1733150938946,0.12549,228.03,227.89,20.3638305]
[1733150939148,0.12549,228.03,227.86,10.9713]
[1733150939355,0.12549,228.03,227.87,20.3638305]
[1733150939559,0.12549,228.03,227.86,20.3638305]
[1733150939747,23.902374,228.03,227.86,20.3638305]
[1733150939947,23.902374,228.03,227.89,20.3638305]
[1733150941264,20.0,228.0,227.87,20.3638305]
[1733150941450,23.776884,227.99,227.85,20.3638305]
[1733150941839,23.776884,227.99,227.83,0.8752757]
[1733150942039,6.4785,227.95,227.77,20.3638305]
[1733150942255,23.776884,227.92,227.75,26.6688305]
[1733150942467,20.0,227.89,227.75,6.305]
[1733150942668,23.776884,227.88,227.72,20.3638305]
[1733150943167,23.776884,227.88,227.71,20.3638305]
[1733150943373,23.776884,227.88,227.7,6.305]
[1733150943374,20.0,227.85,227.7,6.305]
[1733150943560,15.9016,227.93,227.74,20.3638305]
[1733150943750,20.0,227.89,227.74,20.3638305]
[1733150944150,20.0,227.89,227.76,20.3638305]
[1733150944457,20.0,227.89,227.78,20.3638305]
[1733150944658,20.0,227.89,227.76,20.3638305]
[1733150946243,20.0,227.85,227.71,20.3638305]
[1733150946667,20.0,227.85,227.7,6.305]
[1733150946668,23.776884,227.84,227.7,6.305]
[1733150947249,20.0,227.78,227.64,6.4224]
[1733150947471,20.0,227.78,227.63,0.87594364]
[1733150947765,20.0,227.78,227.6,21.23998528]
[1733150947949,23.776884,227.77,227.6,20.3638305]
[1733150948344,21.22342162,227.76,227.6,5.09653398]
[1733150948549,27.00679973,227.67,227.59,26.7862305]
[1733150948749,30.0387171,227.66,227.59,26.7862305]
[1733150948950,3.03191737,227.65,227.59,26.7862305]
[1733150949147,27.00679973,227.66,227.59,26.7862305]
[1733150949362,27.00679973,227.7,227.6,0.87628984]
[1733150949568,27.00679973,227.73,227.6,0.87628984]
[1733150949752,3.02561032,227.72,227.59,26.7862305]
[1733150949951,23.776884,227.73,227.59,26.7862305]
[1733150950173,27.00679973,227.74,227.6,0.87630911]
[1733150950365,27.00679973,227.78,227.66,20.3638305]
[1733150950570,0.12549,227.77,227.64,20.3638305]
[1733150951554,27.00679973,227.8,227.68,20.3638305]
[1733150951773,27.00679973,227.84,227.7,20.3638305]
[1733150952071,140.02031977,227.83,227.64,20.3638305]
[1733150952281,3.14594588,227.82,227.62,21.23977316]
[1733150952566,3.02045588,227.81,227.62,21.23977316]
[1733150952774,23.776884,227.8,227.62,20.87594266]
[1733150952958,3.01904835,227.79,227.64,20.3638305]
[1733150953166,23.776884,227.78,227.66,20.3638305]
[1733150953351,23.776884,227.78,227.66,21.2398485]
[1733150953553,23.776884,227.78,227.66,20.3638305]
[1733150954176,23.776884,227.78,227.64,20.3638305]
[1733150954974,137.12549,227.82,227.59,6.4224]
[1733150954975,23.776884,227.75,227.59,6.4224]
[1733150955179,23.776884,227.71,227.56,20.3638305]
[1733150955360,23.776884,227.71,227.58,0.87634428]
[1733150956077,23.776884,227.71,227.55,0.87640512]
[1733150956257,23.776884,227.71,227.55,21.24023562]
[1733150956460,20.0,227.68,227.55,21.24023562]
[1733150957064,23.776884,227.71,227.54,6.5197]
[1733150957266,23.776884,227.67,227.52,0.87644017]
[1733150957486,23.776884,227.67,227.53,20.3638305]
[1733150957800,23.776884,227.67,227.53,21.2403495]
[1733150958012,23.776884,227.67,227.52,0.87656421]
[1733150958302,23.776884,227.67,227.51,20.3638305]
[1733150958503,23.776884,227.63,227.49,26.8835305]
[1733150958720,3.97921286,227.66,227.55,20.3638305]
[1733150958721,27.97415591,227.66,227.55,20.3638305]
[1733150958891,0.96735618,227.66,227.56,0.87641486]
[1733150959194,20.0,227.67,227.57,20.3638305]
[1733150959399,0.12549,227.67,227.57,20.3638305]
[1733150959775,0.12549,227.67,227.55,20.3638305]
[1733150960097,23.776884,227.66,227.53,20.0]
[1733150960302,0.96735618,227.65,227.51,21.24039072]
[1733150960526,0.96735618,227.65,227.53,20.3638305]
[1733150960802,27.97415591,227.65,227.51,21.24039072]
[1733150960969,3.00609,227.64,227.51,21.24039072]
[1733150961176,0.96735618,227.63,227.51,21.24039072]
[1733150961400,0.96735618,227.63,227.5,20.3638305]
[1733150961694,3.00463141,227.62,227.52,20.3638305]
[1733150961910,0.96735618,227.63,227.52,20.3638305]
[1733150962081,20.0,227.64,227.52,20.3638305]
[1733150962285,1.09575942,227.63,227.5,20.71141066]
[1733150962904,1.09575942,227.63,227.52,20.3638305]
[1733150963311,1.09575942,227.63,227.54,20.3638305]
[1733150963599,1.09561908,227.71,227.56,20.3638305]
[1733150963802,0.12549,227.69,227.52,0.34714794]
[1733150963999,1.22124086,227.69,227.52,20.71097844]
[1733150964211,1.09575226,227.68,227.5,20.71134005]
[1733150964499,16.6182,227.66,227.5,20.71134005]
[1733150964696,16.6182,227.66,227.49,6.5197]
[1733150964697,23.776884,227.64,227.49,0.34774271]
[1733150965016,23.776884,227.62,227.48,20.3638305]
[1733150965220,1.09592007,227.61,227.49,0.34792357]
[1733150965611,1.09592007,227.61,227.5,20.3638305]
[1733150966004,1.09592007,227.61,227.49,0.34792357]
[1733150966310,1.09592007,227.61,227.46,16.206]
[1733150966311,23.776884,227.6,227.47,0.34794233]
[1733150966518,1.09606294,227.59,227.47,0.34794233]
[1733150966723,1.09606294,227.59,227.45,20.3638305]
[1733150966906,1.09606294,227.59,227.47,20.3638305]
[1733150967104,1.09606294,227.59,227.48,0.34808693]
[1733150967522,23.776884,227.62,227.48,0.34808693]
[1733150967830,1.09595289,227.61,227.48,0.34808693]
[1733150968006,23.776884,227.6,227.47,20.3638305]
[1733150968208,23.776884,227.62,227.44,0.34791292]
[1733150968209,1.09603699,227.59,227.45,20.3638305]
[1733150968403,23.776884,227.58,227.41,0.34817852]
[1733150968603,1.09618485,227.57,227.42,20.3638305]
[1733150968822,1.09618485,227.57,227.43,0.34844175]
[1733150969013,23.776884,227.56,227.43,0.34844175]
[1733150969303,1.09620156,227.55,227.44,20.3638305]
[1733150970024,1.09620156,227.55,227.4,0.34838593]
[1733150970025,1.09618104,227.57,227.45,0.3484455]
[1733150971621,1.09618104,227.57,227.44,12.76347488]
[1733150971832,23.776884,227.56,227.42,12.76347488]
[1733150972022,39.180984,227.54,227.4,12.76347488]
[1733150972224,7.53718846,227.53,227.4,12.76347488]
[1733150973928,7.53718846,227.53,227.42,12.76347488]
[1733150974134,15.4041,227.54,227.44,12.76347488]
[1733150974335,1.09600957,227.57,227.46,12.76347488]
[1733150974520,1.09600957,227.57,227.45,12.76347488]
[1733150974721,1.09600957,227.57,227.46,0.34821553]
[1733150974922,0.12549,227.56,227.46,0.34821553]
[1733150975124,1.22157343,227.56,227.46,0.34821553]
[1733150975336,1.22157343,227.56,227.45,13.11161314]
[1733150975521,1.22157343,227.56,227.45,0.34813826]
[1733150975843,1.22157343,227.56,227.43,12.76347488]
[1733150976019,1.22157343,227.56,227.44,0.34837581]
[1733150976218,1.22157343,227.56,227.43,12.76347488]
[1733150976640,1.22157343,227.56,227.42,0.34837581]